bitfinex-derivatives/quotes_BNBF0:USTF0_20250331
["timestamp","ask_amount","ask_price","bid_price","bid_amount"]
[1743406728784,2.013,597.08,596.08,0.28837205]
[1743406728984,2.013,597.08,596.09,0.28837205]
[1743406729181,2.013,597.08,596.1,0.28837205]
[1743406729385,2.013,597.08,596.11,0.28837205]
[1743406729581,2.013,597.08,596.12,0.28837205]
[1743406729785,2.013,597.08,596.13,0.28837205]
[1743406729980,2.013,597.08,596.14,0.28837205]
[1743406730186,2.013,597.08,596.15,0.28837205]
[1743406730481,2.793,597.08,596.0,0.29162581]
[1743406730686,2.793,597.08,596.01,0.28837173]
[1743406730885,2.793,597.08,596.02,0.28837173]
[1743406731078,2.793,597.08,596.03,0.28837173]
[1743406731283,2.793,597.08,596.04,0.28837173]
[1743406731583,2.793,597.08,596.05,0.28837173]
[1743406731786,2.793,597.08,596.06,0.28837173]
[1743406731986,2.793,597.08,596.07,0.28837173]
[1743406732181,2.793,597.08,596.08,0.28837173]
[1743406732389,2.793,597.08,596.09,0.28837173]
[1743406732588,2.793,597.08,596.1,0.28837173]
[1743406732784,2.793,597.08,596.11,0.28837173]
[1743406733088,3.623,597.08,596.12,0.28837173]
[1743406733289,3.623,597.08,596.13,0.28837173]
[1743406733484,3.623,597.08,596.14,0.28837173]
[1743406733688,3.623,597.08,596.15,0.28837173]
[1743406733889,3.623,597.08,596.16,0.28837173]
[1743406734082,3.623,597.08,596.17,0.28837173]
[1743406734283,3.623,597.08,596.18,0.28837173]
[1743406734487,3.623,597.08,596.2,0.3354579]
[1743406734790,3.623,597.08,596.21,0.28837173]
[1743406735085,3.623,597.08,596.23,0.33544102]
[1743406735284,3.623,597.08,596.24,0.28837173]
[1743406735489,3.623,597.08,596.26,0.33542414]
[1743406735689,3.623,597.08,596.27,0.28837173]
[1743406735890,3.623,597.08,596.29,0.33540726]
[1743406736085,3.623,597.08,596.3,0.28837173]
[1743406736290,3.623,597.08,596.1,0.2916197]
[1743406736291,3.623,597.08,596.31,0.62376774]
[1743406736488,3.623,597.08,596.32,0.62376212]
[1743406736687,3.623,597.08,596.33,0.28837173]
[1743406736884,3.623,597.08,596.33,0.6237565]
[1743406737091,3.623,597.08,596.34,0.28837173]
[1743406737285,3.623,597.08,596.35,0.33537352]
[1743406737490,3.623,597.08,596.36,0.28837173]
[1743406737689,3.623,597.08,596.37,0.33536227]
[1743406737990,3.623,597.08,596.38,0.28837173]
[1743406739089,3.623,597.08,596.39,0.33535102]
[1743406739294,3.623,597.08,596.4,0.28837173]
[1743406739493,3.623,597.08,596.41,0.33533978]
[1743406739687,3.623,597.08,596.42,0.28837173]
[1743406739989,3.623,597.08,596.43,0.33532853]
[1743406740193,4.473,597.08,596.44,0.28837173]
[1743406740394,4.473,597.08,596.45,0.33531729]
[1743406740890,4.473,597.08,596.46,0.28837717]
[1743406741091,4.473,597.08,596.47,0.33530605]
[1743406741396,4.473,597.08,596.48,0.28837717]
[1743406741593,4.473,597.08,596.49,0.3352948]
[1743406741787,4.473,597.08,596.5,0.28837717]
[1743406742186,4.473,597.08,596.51,0.33528356]
[1743406742392,4.473,597.08,596.52,0.28837717]
[1743406742592,4.473,597.08,596.53,0.33527232]
[1743406742893,4.473,597.08,596.54,0.28837717]
[1743406743192,4.473,597.08,596.55,0.33526108]
[1743406743493,4.473,597.08,596.56,0.28837717]
[1743406744986,4.473,597.08,596.57,0.33524984]
[1743406745287,4.473,597.08,596.58,0.28837717]
[1743406745692,4.473,597.08,596.59,0.3352386]
[1743406745890,4.473,597.08,596.6,0.28845283]
[1743406746288,4.473,597.08,596.61,0.33522736]
[1743406746492,4.473,597.08,596.62,0.28845283]
[1743406746795,4.473,597.08,596.63,0.33521613]
[1743406746994,4.473,597.08,596.64,0.28845283]
[1743406747694,4.473,597.08,596.65,0.33520489]
[1743406747896,4.473,597.08,596.66,0.28845283]
[1743406748097,3.563,597.08,596.66,0.28845283]
[1743406748596,3.563,597.08,596.67,0.33519365]
[1743406748798,3.563,597.08,596.68,0.28845283]
[1743406749197,3.563,597.08,596.69,0.28843925]
[1743406749396,3.563,597.08,596.7,0.28843925]
[1743406749597,3.563,597.08,596.67,0.33519365]
[1743406749598,3.563,597.08,596.68,0.28843925]
[1743406749791,3.563,597.08,596.69,0.28843925]
[1743406749993,3.563,597.08,596.68,0.28843925]
[1743406750298,3.563,597.08,596.7,0.3351768]
[1743406750497,3.563,597.08,596.71,0.28843925]
[1743406750893,3.563,597.08,596.7,0.3351768]
[1743406751500,2.783,597.08,596.7,0.3351768]
[1743406755204,2.783,597.08,596.4,0.29161237]
[1743406755506,2.783,597.08,596.41,0.2885683]
[1743406757005,2.783,597.08,596.42,0.33533416]
[1743406757206,2.783,597.08,596.43,0.2885435]
[1743406757406,2.783,597.08,596.44,0.33532291]
[1743406769022,0.2918239,597.07,596.44,0.33532291]
[1743406770722,1.103,597.08,596.44,0.33532291]
[1743406770924,0.29172482,597.06,596.44,0.33532291]
[1743406771721,1.038,597.05,596.44,0.33532291]
[1743406771924,1.038,597.05,596.14,0.29172482]
[1743406772226,1.038,597.05,596.15,0.28871108]
[1743406773223,0.845,597.04,596.15,0.28871108]
[1743406773827,0.845,597.04,594.9,2.52933367]
[1743406774126,1.11,597.03,595.0,0.33613445]
[1743406774319,1.11,597.03,595.01,0.28869033]
[1743406774522,1.11,597.03,595.11,0.33607232]
[1743406774726,1.11,597.03,595.12,0.28869033]
[1743406774926,1.11,597.03,595.14,0.33605538]
[1743406775227,1.11,597.03,595.15,0.28869033]
[1743406775527,1.11,597.03,595.16,0.28869033]
[1743406775726,1.11,597.03,595.17,0.28869033]
[1743406775925,1.11,597.03,595.18,0.28869033]
[1743406776125,1.11,597.03,595.19,0.28869033]
[1743406776327,1.11,597.03,595.2,0.28869033]
[1743406776628,1.11,597.03,595.22,0.33601021]
[1743406777031,1.11,597.03,595.23,0.28868607]
[1743406777224,1.11,597.03,595.25,0.33599328]
[1743406777428,1.11,597.03,595.26,0.28868607]
[1743406777629,1.11,597.03,595.28,0.33597634]
[1743406777830,1.11,597.03,595.29,0.28868607]
[1743406778031,1.11,597.03,595.28,0.33597634]
[1743406778232,1.11,597.03,595.29,0.28869282]
[1743406778432,1.11,597.03,595.31,0.33595941]
[1743406778633,1.11,597.03,595.32,0.28869282]
[1743406778834,1.11,597.03,595.31,0.33595941]
[1743406778835,1.11,597.03,595.33,0.28869282]
[1743406779028,1.11,597.03,595.35,0.33593684]
[1743406779434,1.11,597.03,595.36,0.28869282]
[1743406779630,1.11,597.03,595.38,0.33591991]
[1743406779834,1.11,597.03,595.39,0.28869282]
[1743406780028,1.11,597.03,595.41,0.33590299]
[1743406780228,1.11,597.03,595.42,0.28869282]
[1743406780433,1.11,597.03,595.44,0.33588606]
[1743406780635,1.11,597.03,595.45,0.28869282]
[1743406780829,1.11,597.03,595.47,0.33586914]
[1743406781029,0.29183614,597.02,595.47,0.33586914]
[1743406781231,0.29183614,597.02,595.48,0.28870982]
[1743406781435,0.29183614,597.02,595.5,0.33585222]
[1743406781634,0.29183614,597.02,595.51,0.28870982]
[1743406781830,0.29183614,597.02,595.52,0.28870982]
[1743406782034,0.29183614,597.02,595.53,0.62454512]
[1743406782330,0.29183614,597.02,595.54,0.28870982]
[1743406782535,0.29183614,597.02,595.55,0.28870982]
[1743406782730,1.11,597.03,595.56,0.28870982]
[1743406782937,1.11,597.03,595.57,0.28870982]
[1743406783237,1.11,597.03,595.59,0.33580147]
[1743406783436,1.11,597.03,595.6,0.28870982]
[1743406783638,1.11,597.03,595.61,0.28870982]
[1743406783835,1.11,597.03,595.63,0.33577892]
[1743406784030,0.29181778,597.02,595.64,0.28870982]
[1743406784235,0.29181778,597.02,595.66,0.33576201]
[1743406784537,0.29181778,597.02,595.67,0.28870982]
[1743406784731,0.29181778,597.02,595.69,0.3357451]
[1743406785036,0.29181778,597.02,595.7,0.28870982]
[1743406785236,0.29181778,597.02,595.72,0.33572819]
[1743406785539,0.858,597.01,595.73,0.28870982]
[1743406785738,0.858,597.01,595.74,0.28870982]
[1743406785936,0.858,597.01,595.75,0.28870982]
[1743406786338,0.858,597.01,595.77,0.33570001]
[1743406786534,0.858,597.01,595.78,0.28870982]
[1743406786745,0.858,597.01,595.8,0.33568311]
[1743406787137,0.29180065,597.0,595.81,0.28870982]
[1743406787338,0.29180065,597.0,595.83,0.33566621]
[1743406787538,0.29180065,597.0,595.84,0.28870982]
[1743406787736,0.29180065,597.0,595.86,0.33564931]
[1743406787941,0.29180065,597.0,595.87,0.28870982]
[1743406788143,0.29180065,597.0,595.89,0.33563241]
[1743406788342,0.29180065,597.0,595.9,0.28870982]
[1743406788543,0.29180065,597.0,595.91,0.33562115]
[1743406788845,0.858,597.01,595.92,0.28870982]
[1743406789040,0.858,597.01,595.94,0.33560425]
[1743406789242,0.858,597.01,595.95,0.28870982]
[1743406789443,0.858,597.01,595.96,0.33559299]
[1743406789645,0.858,597.01,595.97,0.28870982]
[1743406789840,0.858,597.01,595.98,0.33558173]
[1743406790039,0.858,597.01,595.99,0.28870982]
[1743406790344,0.858,597.01,596.0,0.33557046]
[1743406792945,0.858,597.01,596.01,0.28871703]
[1743406793439,0.858,597.01,596.02,0.288717]
[1743406793645,0.858,597.01,596.01,0.288717]
[1743406793945,0.858,597.01,596.02,0.288717]
[1743406794244,0.858,597.01,596.0,0.33557046]
[1743406794245,0.858,597.01,596.03,0.288717]
[1743406794439,0.858,597.01,596.0,0.33557046]
[1743406796248,0.858,597.01,596.01,0.28874805]
[1743406796446,0.858,597.01,596.02,0.3355592]
[1743406797743,1.005,597.0,596.02,0.3355592]
[1743406797946,1.29681166,597.0,596.02,0.3355592]
[1743406798248,1.11,596.99,596.02,0.3355592]
[1743406799245,2.23188187,596.99,596.02,0.3355592]
[1743406799448,3.08148106,596.99,596.02,0.3355592]
[1743406800647,4.45316316,596.99,596.02,0.3355592]
[1743406800850,0.84959919,596.98,596.02,0.3355592]
[1743406801048,1.53881289,596.98,596.02,0.3355592]
[1743406802047,0.763,596.97,596.02,0.3355592]
[1743406803649,2.98704287,596.97,596.02,0.3355592]
[1743406804150,5.90788407,596.97,596.02,0.3355592]
[1743406804355,2.22404287,596.96,596.02,0.3355592]
[1743406804556,2.22424258,596.96,596.02,0.3355592]
[1743406807058,0.29183981,596.95,596.02,0.3355592]
[1743406809759,1.12340046,596.96,596.02,0.3355592]
[1743406810055,1.05479209,596.97,596.02,0.3355592]
[1743406812758,0.763,596.97,596.02,0.3355592]
[1743406814063,0.29192917,596.96,596.02,0.3355592]
[1743406815755,0.763,596.97,596.02,0.3355592]
[1743406816362,0.763,596.97,596.03,0.28870429]
[1743406816558,0.763,596.97,596.04,0.33554794]
[1743406816862,0.763,596.97,596.05,0.28870429]
[1743406817160,0.763,596.97,596.06,0.33553669]
[1743406817365,0.763,596.97,596.07,0.28870429]
[1743406817568,0.763,596.97,596.08,0.33552543]
[1743406817762,0.763,596.97,596.09,0.28870429]
[1743406817962,0.763,596.97,596.1,0.33551417]
[1743406818163,0.763,596.97,596.11,0.28870429]
[1743406818467,0.763,596.97,596.12,0.33550291]
[1743406818669,0.763,596.97,596.13,0.28870429]
[1743406818866,0.763,596.97,596.14,0.33549166]
[1743406819074,0.763,596.97,596.15,0.28870429]
[1743406819271,0.763,596.97,596.16,0.3354804]
[1743406819472,0.763,596.97,596.17,0.28865582]
[1743406819671,0.763,596.97,596.18,0.33546915]
[1743406819872,0.763,596.97,596.19,0.28865582]
[1743406820072,0.763,596.97,596.2,0.3354579]
[1743406820274,0.763,596.97,596.21,0.28865582]
[1743406820870,0.763,596.97,596.22,0.62409645]
[1743406821069,0.763,596.97,596.23,0.62409083]
[1743406821275,0.763,596.97,596.24,0.6240852]
[1743406821774,0.763,596.97,596.25,0.28864981]
[1743406822174,1.247,596.98,596.25,0.28864981]
[1743406822769,1.247,596.98,596.24,0.33543539]
[1743406825768,0.954,596.97,596.24,0.33543539]
[1743406828971,0.29187407,596.96,596.24,0.33543539]
[1743406829777,1.185,596.95,596.24,0.33543539]
[1743406831070,1.185,596.95,596.25,0.28872135]
[1743406833374,1.185,596.95,596.24,0.33543539]
[1743406833676,1.185,596.95,596.25,0.28871771]
[1743406833677,2.342,596.95,596.25,0.28871771]
[1743406835280,2.342,596.95,596.26,0.28871745]
[1743406835481,2.342,596.95,596.25,0.28871745]
[1743406836780,2.342,596.95,596.24,0.33543539]
[1743406836980,2.342,596.95,596.25,0.28873048]
[1743406837176,3.182,596.95,596.25,0.28873048]
[1743406840583,3.182,596.95,596.24,0.33543539]
[1743406843984,0.29185694,596.94,596.24,0.33543539]
[1743406844591,1.42373832,596.94,596.24,0.33543539]
[1743406845791,1.13188138,596.94,596.24,0.33543539]
[1743406845989,3.182,596.95,596.24,0.33543539]
[1743406846190,0.2917823,596.93,596.24,0.33543539]
[1743406848689,2.24007443,596.93,596.24,0.33543539]
[1743406849695,8.76588939,596.94,596.24,0.33543539]
[1743406849897,5.82367612,596.93,596.24,0.33543539]
[1743406850195,5.46199507,596.92,595.37,2.52933367]
[1743406850397,5.82367612,596.91,595.89,0.29190101]
[1743406850697,2.22727643,596.9,595.9,0.62443951]
[1743406850891,0.85664478,596.9,595.91,0.28881273]
[1743406851091,0.85664478,596.9,595.92,0.28881628]
[1743406851290,3.79885805,596.9,595.91,0.28881628]
[1743406851491,1.38312868,596.89,595.92,0.28881628]
[1743406851693,3.61040511,596.89,595.93,0.28881628]
[1743406851891,1.13188138,596.88,595.94,0.28881628]
[1743406852199,3.66349342,596.88,595.95,0.28881628]
[1743406852400,3.09677346,596.87,595.91,0.28881628]
[1743406852699,3.09677346,596.87,595.92,0.28881628]
[1743406852892,0.823,596.86,595.93,0.28881628]
[1743406853092,0.823,596.86,595.94,0.28881628]
[1743406853292,3.06277346,596.86,595.95,0.28881628]
[1743406853499,3.06277346,596.86,595.91,0.28881628]
[1743406853798,6.00498673,596.86,595.92,0.28881628]
[1743406853996,2.23977346,596.85,595.91,0.28881628]
[1743406854300,2.23977346,596.85,595.92,0.28881628]
[1743406854598,2.23977346,596.85,595.93,0.28881628]
[1743406854793,2.23977346,596.85,595.91,0.28881628]
[1743406854998,0.925,596.84,595.92,0.28881628]
[1743406855200,0.925,596.84,595.91,0.28881628]
[1743406855397,0.925,596.84,595.92,0.28881628]
[1743406855593,0.925,596.84,595.91,0.28881628]
[1743406855798,0.925,596.84,595.9,0.33562678]
[1743406855799,3.16477346,596.84,595.92,0.28881628]
[1743406856000,0.29185449,596.83,595.91,0.28881628]
[1743406856701,1.42373587,596.83,595.91,0.28881628]
[1743406856900,3.66350933,596.83,595.91,0.28881628]
[1743406857299,2.28038065,596.83,595.91,0.28881628]
[1743406857499,1.42373587,596.83,595.91,0.28881628]
[1743406857698,2.16288138,596.83,595.91,0.28881628]
[1743406857900,1.031,596.83,595.91,0.28881628]
[1743406858400,1.031,596.83,595.92,0.28882276]
[1743406858606,1.031,596.83,595.91,0.28882276]
[1743406858806,1.031,596.83,595.92,0.28882276]
[1743406859001,0.29184837,596.82,595.91,0.28882276]
[1743406859298,0.29184837,596.82,595.92,0.28882276]
[1743406859506,1.42372975,596.82,595.91,0.28882276]
[1743406859701,1.42372975,596.82,595.92,0.28882276]
[1743406859896,1.42372975,596.82,595.91,0.28882276]
[1743406860099,0.29184837,596.82,595.93,0.28882276]
[1743406860299,0.29184837,596.82,595.94,0.28882276]
[1743406860604,0.29184837,596.82,595.95,0.28882276]
[1743406860807,1.031,596.83,595.96,0.28882276]
[1743406861008,1.031,596.83,595.91,0.28882276]
[1743406861304,1.031,596.83,595.92,0.28882276]
[1743406861703,1.031,596.83,595.93,0.28882276]
[1743406861903,0.29184837,596.82,595.91,0.28882276]
[1743406862103,0.29184837,596.82,595.92,0.28882276]
[1743406862304,0.29184837,596.82,595.91,0.28882276]
[1743406862604,0.29184837,596.82,595.92,0.28882276]
[1743406862806,0.29184837,596.82,595.91,0.28882276]
[1743406863003,0.29184837,596.82,595.92,0.28882276]
[1743406863205,0.29184837,596.82,595.91,0.28882276]
[1743406863700,1.8862585,596.83,595.91,0.28882276]
[1743406863903,1.031,596.83,595.91,0.28882276]
[1743406864797,1.8862585,596.83,595.91,0.28882276]
[1743406865000,0.29184837,596.82,595.91,0.28882276]
[1743406866105,0.29184837,596.82,595.9,0.62747515]
[1743406866301,0.29184837,596.82,595.91,0.28882379]
[1743406868005,1.51284837,596.82,595.92,0.28884266]
[1743406868201,2.3679943,596.82,595.9,0.62747515]
[1743406868404,3.49987568,596.82,595.91,0.28884059]
[1743406868900,2.64472975,596.82,595.91,0.28884059]
[1743406869809,1.221,596.82,595.92,0.28882995]
[1743406870009,1.221,596.82,595.91,0.28882995]
[1743406870212,1.221,596.82,595.92,0.28882995]
[1743406870510,1.221,596.82,595.93,0.28882995]
[1743406870704,1.221,596.82,595.91,0.28882995]
[1743406870907,1.221,596.82,595.92,0.28882995]
[1743406871103,0.29185449,596.81,595.9,0.33562678]
[1743406871307,0.29185449,596.81,595.91,0.28879352]
[1743406871509,1.221,596.82,595.91,0.28879352]
[1743406872409,1.221,596.82,595.92,0.33561551]
[1743406872609,1.221,596.82,595.93,0.28879352]
[1743406872911,1.221,596.82,595.92,0.33561551]
[1743406873112,1.221,596.82,595.93,0.28872108]
[1743406874007,1.221,596.82,595.94,0.33560425]
[1743406874210,1.221,596.82,595.95,0.28872108]
[1743406874412,1.221,596.82,595.96,0.33559299]
[1743406874607,1.221,596.82,595.97,0.28872108]
[1743406874813,1.221,596.82,595.98,0.33558173]
[1743406875113,1.221,596.82,595.99,0.28872108]
[1743406875314,1.221,596.82,596.0,0.33557046]
[1743406875509,1.221,596.82,596.01,0.28872108]
[1743406876715,1.221,596.82,596.02,0.62423559]
[1743406876908,1.221,596.82,596.03,0.28867639]
[1743406877313,1.221,596.82,596.04,0.33554794]
[1743406877509,1.221,596.82,596.05,0.28867639]
[1743406877917,1.221,596.82,596.06,0.33553669]
[1743406878111,1.221,596.82,596.07,0.28867639]
[1743406878317,1.221,596.82,596.08,0.33552543]
[1743406878515,1.221,596.82,596.09,0.28867639]
[1743406878718,1.221,596.82,596.1,0.33551417]
[1743406878920,1.221,596.82,596.11,0.28867639]
[1743406879617,1.221,596.82,596.12,0.33550291]
[1743406879815,1.221,596.82,596.13,0.28867639]
[1743406880117,1.221,596.82,596.14,0.33549166]
[1743406880413,1.221,596.82,596.15,0.28867639]
[1743406882715,1.961,596.82,596.15,0.28867639]
[1743406883217,3.112,596.82,596.15,0.28867639]
[1743406884114,3.112,596.82,596.16,0.2887106]
[1743406884314,3.112,596.82,596.15,0.2887106]
[1743406884515,3.112,596.82,596.16,0.2887106]
[1743406884714,3.112,596.82,596.15,0.2887106]
[1743406884917,3.112,596.82,596.16,0.2887106]
[1743406885120,3.112,596.82,596.15,0.2887106]
[1743406885314,3.112,596.82,596.16,0.2887109]
[1743406885517,3.112,596.82,596.15,0.2887109]
[1743406885713,3.112,596.82,596.16,0.2887109]
[1743406886014,3.112,596.82,596.14,0.33549166]
[1743406886218,3.112,596.82,596.15,0.28870616]
[1743406887115,3.112,596.82,596.16,0.28870651]
[1743406887313,3.112,596.82,596.15,0.28870651]
[1743406887514,3.112,596.82,596.14,0.33549166]
[1743406887717,3.112,596.82,596.15,0.28870651]
[1743406890317,3.112,596.82,596.14,0.33549166]
[1743406890621,3.112,596.82,596.15,0.28868591]
[1743406892725,3.112,596.82,596.16,0.3354804]
[1743406893025,3.112,596.82,596.17,0.28868591]
[1743406894125,3.112,596.82,596.18,0.33546915]
[1743406894321,3.112,596.82,596.19,0.28868591]
[1743406894723,3.112,596.82,596.2,0.3354579]
[1743406894927,3.112,596.82,596.21,0.28868591]
[1743406895127,3.112,596.82,596.22,0.33544664]
[1743406895328,3.112,596.82,596.23,0.28868591]
[1743406895526,3.112,596.82,596.24,0.33543539]
[1743406895728,3.112,596.82,596.25,0.28868591]
[1743406896329,3.112,596.82,596.26,0.33542414]
[1743406896629,3.112,596.82,596.27,0.28868591]
[1743406901030,3.112,596.82,596.28,0.28863395]
[1743406901232,3.112,596.82,596.27,0.28863395]
[1743406902031,3.112,596.82,596.28,0.33541289]
[1743406902231,3.112,596.82,596.29,0.28863395]
[1743406902432,3.112,596.82,596.29,0.62404121]
[1743406902629,3.112,596.82,596.29,0.33540726]
[1743406912834,3.889,596.82,596.29,0.33540726]
[1743406922347,3.889,596.82,596.3,0.28865302]
[1743406922543,3.889,596.82,596.29,0.33540726]
[1743406929349,3.889,596.82,596.0,0.29180677]
[1743406929545,3.889,596.82,596.01,0.62431585]
[1743406929751,3.889,596.82,596.02,0.28875102]
[1743406930652,5.0,596.82,596.02,0.28875102]
[1743406931152,5.29181656,596.82,596.01,0.33556483]
[1743406932747,5.0,596.82,596.01,0.33556483]
[1743406933151,5.0,596.82,596.02,0.28876128]
[1743406933753,5.0,596.82,596.01,0.33556483]
[1743406934156,5.0,596.82,596.02,0.28875465]
[1743406934856,5.0,596.82,596.01,0.33556483]
[1743406940662,5.0,596.82,596.02,0.28874875]
[1743406940862,5.0,596.82,596.03,0.33555357]
[1743406941054,5.0,596.82,596.04,0.28874875]
[1743406941553,5.0,596.82,596.05,0.33554232]
[1743406941756,5.0,596.82,596.06,0.28874875]
[1743406941960,5.0,596.82,596.07,0.28875552]
[1743406942461,5.0,596.82,596.08,0.28875552]
[1743406942661,5.0,596.82,596.06,0.28875552]
[1743406942863,5.0,596.82,596.07,0.28875552]
[1743406943063,5.0,596.82,596.06,0.28875552]
[1743406943256,5.0,596.82,596.07,0.62428658]
[1743406943456,5.0,596.82,596.08,0.28875552]
[1743406943664,5.0,596.82,596.08,0.62428095]
[1743406943865,5.0,596.82,596.09,0.28875552]
[1743406945662,5.0,596.82,596.1,0.28871698]
[1743406945868,5.0,596.82,596.09,0.28871698]
[1743406946060,5.0,596.82,596.1,0.62423115]
[1743406946261,5.0,596.82,596.11,0.28871698]
[1743406953670,5.0,596.82,596.1,0.33551417]
[1743406957469,5.0,596.82,596.11,0.28875857]
[1743406963077,5.0,596.82,596.12,0.28871084]
[1743406963273,5.0,596.82,596.11,0.28871084]
[1743406968079,5.0,596.82,596.1,0.33551417]
[1743406968383,5.0,596.82,596.11,0.28871999]
[1743406968582,5.0,596.82,596.1,0.33551417]
[1743406972287,0.2918447,596.81,596.1,0.33551417]
[1743406972988,0.2918447,596.81,596.11,0.28878058]
[1743406975288,1.234,596.8,596.1,0.33551417]
[1743406975490,1.234,596.8,596.11,0.28876999]
[1743406975789,0.957,596.79,596.11,0.28876999]
[1743406975987,2.198,596.79,596.11,0.28876999]
[1743406976385,1.142,596.78,596.11,0.28876999]
[1743406976588,0.845,596.77,596.11,0.28876999]
[1743406977193,0.845,596.77,596.12,0.28877675]
[1743406977586,0.845,596.77,596.13,0.28877675]
[1743406977786,0.845,596.77,596.14,0.28877675]
[1743406977992,0.845,596.77,596.11,0.28877675]
[1743406978191,0.845,596.77,596.12,0.28877675]
[1743406978394,0.845,596.77,596.11,0.28877675]
[1743406978692,0.845,596.77,596.1,0.33551417]
[1743406978693,0.845,596.77,596.12,0.28877675]
[1743406978893,0.845,596.77,596.1,0.33551417]
[1743406979090,0.29182879,596.76,596.1,0.33551417]
[1743406980894,0.845,596.77,596.1,0.33551417]
[1743406982194,0.29190713,596.76,596.1,0.33551417]
[1743406983800,0.845,596.77,596.1,0.33551417]
[1743406984395,0.845,596.77,596.11,0.28877448]
[1743406985499,0.845,596.77,596.12,0.28876578]
[1743406985693,0.845,596.77,596.13,0.28876578]
[1743406985898,0.845,596.77,596.11,0.28876578]
[1743406986100,0.845,596.77,596.1,0.33551417]
[1743406986301,0.845,596.77,596.11,0.28878454]
[1743406989595,0.845,596.77,596.1,0.33551417]
[1743406990502,0.845,596.77,596.11,0.28877449]
[1743406990702,0.813,596.76,596.11,0.28877449]
[1743406990901,0.813,596.76,596.12,0.28877378]
[1743406991105,0.813,596.76,596.1,0.33551417]
[1743406991599,0.813,596.76,596.11,0.28877273]
[1743406995599,0.813,596.76,596.12,0.33550291]
[1743407002903,1.233,596.75,596.12,0.33550291]
[1743407004403,1.233,596.75,596.13,0.28871184]
[1743407004806,1.233,596.75,596.13,0.62420913]
[1743407005001,1.065,596.74,596.14,0.28871184]
[1743407007106,1.195,596.73,596.14,0.28871184]
[1743407007807,1.11,596.72,596.14,0.28871184]
[1743407009806,1.09986507,596.72,596.14,0.28871184]
[1743407011209,1.195,596.73,596.14,0.28871184]
[1743407011910,1.003,596.72,596.14,0.28871184]
[1743407012409,1.003,596.72,596.13,0.33549729]
[1743407016611,1.003,596.72,596.14,0.28825826]
[1743407018812,1.003,596.72,596.13,0.33549729]
[1743407019711,1.003,596.72,596.14,0.28827966]
[1743407021516,1.003,596.72,596.13,0.33549729]
[1743407023011,0.29191937,596.71,596.13,0.33549729]
[1743407025711,1.003,596.72,596.13,0.33549729]
[1743407027116,0.29196223,596.71,596.13,0.33549729]
[1743407028823,1.195,596.73,596.13,0.33549729]
[1743407030124,0.29196468,596.72,596.13,0.33549729]
[1743407031520,0.884,596.71,596.13,0.33549729]
[1743407033520,0.884,596.71,595.32,2.52933367]
[1743407033725,0.884,596.71,595.34,0.33594248]
[1743407033927,0.884,596.71,595.77,0.29189856]
[1743407034229,0.884,596.71,595.34,0.33594248]
[1743407034430,0.884,596.71,595.35,0.28843803]
[1743407034726,0.884,596.71,595.35,0.58043701]
[1743407034922,3.1212376,596.71,595.35,0.58043701]
[1743407035120,3.1212376,596.71,595.36,0.28843803]
[1743407036125,0.29199775,596.7,595.36,0.28843803]
[1743407037028,2.20637415,596.7,595.36,0.28843803]
[1743407037223,4.44361175,596.7,595.36,0.28843803]
[1743407037423,0.85591653,596.69,595.36,0.28843803]
[1743407037620,0.85591653,596.69,595.38,0.33591991]
[1743407037821,1.98629293,596.69,595.39,0.28843803]
[1743407038024,1.98629293,596.69,595.41,0.33590299]
[1743407038220,1.98629293,596.69,595.42,0.28843803]
[1743407038425,0.85591653,596.69,595.44,0.33588606]
[1743407038625,0.85591653,596.69,595.45,0.28843803]
[1743407038923,0.85591653,596.69,595.46,0.33587478]
[1743407039122,0.29198305,596.68,595.47,0.28843803]
[1743407039322,0.29198305,596.68,595.48,0.3358635]
[1743407039527,0.29198305,596.68,595.49,0.28843803]
[1743407039823,0.29198305,596.68,595.5,0.33585222]